Cogmind - Beta 15 *** ADVENTURER MODE // 2025.05.08 @ 01:21:33 Player: Tisa Result: Self-destructed Performance ------------- Evolutions (2) 1000 Regions Visited (7) 1400 Robots Destroyed (111) 555 Value Destroyed (3047) 3047 Prototype IDs (36) 720 Alien Tech Used (0) 0 Bonus (400) 400 TOTAL SCORE: 7122 Bonus ------- High Alert Combat Kills 100 Aligned with FarCom 300 Cogmind --------- Core Integrity 430/550 Matter 139/300 Energy 275/275 System Corruption 0% Temperature Cool (0) Movement Treading (160) Location -8/Materials Parts ------- > --- POWER (1) -------- Deuterium Engine > --- PROPULSION (3) --- Improved Treads > --- UTILITY (5) ------ Lightpack 2.0 > --- WEAPON (2) ------- Assault Rifle Mini Grenade Launcher > --- INVENTORY (40) --- Improved Treads Terrain Scan Processor Improved Propulsion Shielding Hacking Suite Peak State ------------ > --- POWER ------------ Light Nuclear Core > --- PROPULSION ------- Improved Treads Improved Treads Improved Treads > --- UTILITY ---------- Lightpack 2.0 > --- WEAPON ----------- Assault Cannon Assault Cannon > --- INVENTORY -------- Improved Treads Terrain Scan Processor Improved Propulsion Shielding Particle Cannon Mini Grenade Launcher Mini Grenade Launcher [Rating: 46] Favorites ----------- Power Improved Ion Engine Engine Improved Ion Engine Power Core Light Nuclear Core Propulsion Improved Treads Treads Improved Treads Flight Unit Improved Flight Unit Utility Large Storage Unit Device Improved Terrain Scanner Storage Large Storage Unit Protection Hardened Light Armor Plating Weapon Assault Cannon Energy Gun Particle Gun Energy Cannon Particle Cannon Ballistic Gun Assault Rifle Ballistic Cannon Assault Cannon Launcher Mini Grenade Launcher Special Melee Weapon Datajack Build | -11 -10 -10 -9 -9 -9 -8 -8 ------- Run | Yrd Mat Min Mat Min Exi Min Mat Slots Evolved 4 | . . . 2 . . . 2 Power . | . . . . . . . . Propulsion 1 | . . . 1 . . . . Utility 3 | . . . 1 . . . 2 Weapon . | . . . . . . . . Parts Attached 39 | 8 6 . 18 1 2 1 3 Power 7 | 1 2 . 2 . . 1 1 Engine 5 | 1 1 . 2 . . . 1 Core 2 | . 1 . . . . 1 . Reactor . | . . . . . . . . Propulsion 8 | 2 2 . 4 . . . . Treads 7 | 2 2 . 3 . . . . Leg . | . . . . . . . . Wheel . | . . . . . . . . Hover . | . . . . . . . . Flight 1 | . . . 1 . . . . Utility 8 | 3 . . 3 1 1 . . Device 1 | 1 . . . . . . . Storage 6 | 2 . . 2 1 1 . . Processor . | . . . . . . . . Hackware . | . . . . . . . . Protection 1 | . . . 1 . . . . Artifact . | . . . . . . . . Weapon 16 | 2 2 . 9 . 1 . 2 Energy Gun 5 | . 2 . 3 . . . . Energy Cannon 1 | . . . . . . . 1 Ballistic Gun 5 | 2 . . 2 . . . 1 Ballistic Cannon 2 | . . . 2 . . . . Launcher 2 | . . . 2 . . . . Special Weapon . | . . . . . . . . Impact Weapon . | . . . . . . . . Slashing Weapon . | . . . . . . . . Piercing Weapon . | . . . . . . . . Special Melee Weapon 1 | . . . . . 1 . . Unidentified Prototypes 2 | . . . 2 . . . . Parts Lost 9 | . 2 . 2 . . 2 3 Power 2 | . 1 . 1 . . . . Propulsion 3 | . 1 . . . . . 2 Utility 1 | . . . 1 . . . . Weapon 3 | . . . . . . 2 1 Highest Loss Streak 3 | . 2 . 1 . . 1 3 To Critical Strikes 1 | . . . . . . . 1 Average Backups 6 | 1 4 8 6 7 7 6 5 Power . | . 1 1 . . . . . Propulsion . | . . 2 . 1 1 1 1 Utility 1 | . . 1 1 2 2 2 2 Weapon 2 | 1 1 4 2 3 4 3 1 Tool/Special . | . . . . . . . . Unused Backups 8 | . 3 . 2 . . . 3 Power . | . . . . . . . . Propulsion 1 | . . . 1 . . . . Utility 5 | . 1 . 1 . . . 3 Weapon 2 | . 2 . . . . . . Tool/Special . | . . . . . . . . Average Slot Usage (%) 81 | . 98 100 85 77 70 67 59 Engine 7 | . 11 . 9 11 11 . 4 Core 3 | . 2 14 1 . . 10 4 Treads 31 | . 27 28 32 33 33 33 24 Device 3 | . 14 14 1 . . . . Storage 11 | . 14 14 11 11 11 11 9 Protection 3 | . . . 6 . . . . Energy Gun 6 | . 23 28 3 . . . . Ballistic Gun 1 | . 4 . . . . . 1 Ballistic Cannon 11 | . . . 17 22 5 12 5 Peak Build Rating 46 | 9 16 16 19 17 43 46 45 Average Rating 21 | 5 11 16 17 16 23 43 43 On Entrance 19 | . 9 16 16 16 16 43 43 Naked Turns . | . . . . . . . . Heaviest Build 57 | 14 17 17 42 57 57 20 23 Greatest Support 69 | 40 46 46 69 69 69 69 69 Greatest Overweight (x) . | . . . . . . . . Average Overweight (x) . | . . . . . . . . Largest Inventory Capacity 40 | 8 8 8 15 20 40 40 40 Average Capacity 19 | 7 8 8 14 17 27 40 40 Most Carried 11 | 3 8 8 9 8 11 8 7 Average Carried 6 | 1 4 8 6 7 7 6 5 Final Capacity 40 | 8 8 8 15 20 40 40 40 Final Carried 8 | 2 8 8 7 7 7 6 4 Class Distribution -------------------- 76% | Mutant 23% | Hauler-Mutant Dominant Class ---------------- Mutant | -10/Materials Mutant | -10/Mines Mutant | -9/Materials Mutant | -9/Mines Mutant | -9/Exiles Hauler-Mutant | -8/Mines Hauler-Mutant | -8/Materials Resources | -11 -10 -10 -9 -9 -9 -8 -8 ----------- Run | Yrd Mat Min Mat Min Exi Min Mat Matter Collected 1832 | 169 238 . 997 20 . 225 183 Remotely . | . . . . . . . . Salvage Created 3087 | 103 463 78 1739 129 . 124 451 Parts 199 | 8 26 5 113 7 . 10 30 Haulers Intercepted . | . . . . . . . . Recyclers Shooed 1 | . . . . . . . 1 Parts Field Recycled . | . . . . . . . . Retrieved Matter . | . . . . . . . . Parts Self-Destructed . | . . . . . . . . Prevented . | . . . . . . . . Kills | -11 -10 -10 -9 -9 -9 -8 -8 ------- Run | Yrd Mat Min Mat Min Exi Min Mat Combat Hostiles Destroyed 84 | . 12 2 47 3 . 7 13 Guns 22 | . 11 2 9 . . . . Cannons 50 | . . . 33 3 . 7 7 AOE 11 | . . . 5 . . . 6 Classes Destroyed 12 | 3 4 . 3 . . 1 1 Worker 9 | 2 1 . 5 . . . 1 Builder 1 | . . . . . . . 1 Tunneler 1 | 1 . . . . . . . Recycler 3 | 1 . . 2 . . . . Operator 6 | . . . 5 . . . 1 Watcher 7 | . 1 . 5 . . . 1 Swarmer 20 | . 3 . 12 . . 3 2 Grunt 47 | . 7 2 25 2 . 3 8 Brawler 3 | . . . 2 1 . . . Sentry 9 | . . . 8 . . . 1 Hunter 3 | . . . . . . 1 2 Subdweller 2 | . 2 . . . . . . Best Kill Streak 9 | 3 3 2 9 2 . 3 7 Combat Bots Only 5 | . 3 2 5 2 . 3 5 Max Kills in Single Turn 5 | 1 2 1 5 1 . 1 3 Gunslinging 1 | . 1 . 1 . . . . Exploded 2 | . . . 2 . . . 2 Melee . | . . . . . . . . Uniques/NPCs Destroyed . | . . . . . . . . Combat | -11 -10 -10 -9 -9 -9 -8 -8 -------- Run | Yrd Mat Min Mat Min Exi Min Mat Hostile Shots Fired 321 | . 68 4 117 2 . 42 88 Missed 96 | . 17 1 29 1 . 17 31 Hits 225 | . 51 3 88 1 . 25 57 Melee 2 | . . . 2 . . . . Projectile 223 | . 51 3 86 1 . 25 57 Critical Strikes 8 | . 3 . 1 . . 1 3 Damage Taken 2575 | . 592 40 921 9 . 315 698 Core 370 | . 112 14 72 9 . 43 120 Absorbed by Shields . | . . . . . . . . Ignored by Resistances 754 | . 175 12 275 3 . 90 199 Regen/Repaired (Parts) 144 | . . . 144 . . . . Core Remaining (%) 72 | 100 . 49 . . . 69 . Volleys Fired 212 | 7 37 3 92 3 . 24 46 Largest 2 | 2 2 2 2 2 . 2 2 Hottest 130 | 40 130 130 90 74 . 74 105 Shots Fired 382 | 14 74 6 184 6 . 34 64 Gun 172 | 14 74 6 60 . . . 18 Cannon 195 | . . . 120 6 . 34 35 Launcher 15 | . . . 4 . . . 11 Special . | . . . . . . . . Kinetic 273 | 14 22 . 158 6 . 34 39 Thermal 72 | . 52 6 . . . . 14 Explosive 15 | . . . 4 . . . 11 Electromagnetic 22 | . . . 22 . . . . Robot Hit Streak 23 | 5 21 23 20 11 . 11 13 Robot Miss Streak 4 | 1 4 . 3 1 . 2 3 Penetration Max . | . . . . . . . . Secondary Targets 3 | . 2 . 1 . . . . Max Gunslinging Chain 1 | . 1 . 1 . . . . Shots Hit Robots 267 | 9 59 4 117 3 3 25 47 Core Hits 145 | 5 20 3 72 3 . 10 32 Critical Kills . | . . . . . . . . Critical Parts Destroyed 1 | . . . 1 . . . . Critical Strikes 9 | . 4 . 4 . . . 1 Burn 4 | . 4 . . . . . . Destroy 1 | . . . 1 . . . . Blast 4 | . . . 3 . . . 1 Melee Attacks 3 | . . . . . 3 . . Impact . | . . . . . . . . Slashing . | . . . . . . . . Piercing . | . . . . . . . . Sneak Attacks 3 | . . . . . 3 . . Combat Hostiles . | . . . . . . . . Follow-up Attacks . | . . . . . . . . Damage Inflicted 6280 | 100 826 65 2999 62 . 614 1614 Guns 1878 | 100 826 65 749 . . . 138 Cannons 3134 | . . . 1861 62 . 612 599 Explosions 1266 | . . . 389 . . . 877 Melee . | . . . . . . . . Ramming 2 | . . . . . . 2 . Kinetic 3726 | 100 178 . 2305 62 . 612 469 Thermal 1080 | . 648 65 99 . . . 268 Explosive 1167 | . . . 290 . . . 877 Electromagnetic 305 | . . . 305 . . . . Impact . | . . . . . . . . Slashing . | . . . . . . . . Piercing . | . . . . . . . . Highest Corruption . | . . . . . . . . Average Corruption . | . . . . . . . . Corruption Purged . | . . . . . . . . Corruption Blocked . | . . . . . . . . Overload Shots . | . . . . . . . . Overflow Damage 96 | . . . 20 . . 17 59 Projectiles 37 | . . . 20 . . 17 . Explosions 59 | . . . . . . . 59 Melee . | . . . . . . . . Knockbacks 13 | . . . 6 . . 3 4 Impact . | . . . . . . . . Kinetic 13 | . . . 6 . . 3 4 Secondary . | . . . . . . . . Self-Inflicted Damage 28 | . . . 7 . . . 21 Shots 3 | . . . 1 . . . 2 Rammed 1 | . . . . . . 1 . Targets Rammed 1 | . . . . . . 1 . Kicked . | . . . . . . . . Crushed . | . . . . . . . . Highest Temperature 396 | . 396 243 231 18 . 99 150 Average Temperature 73 | . 147 125 44 9 . 50 52 Received Heat Transfer 933 | . 120 27 294 6 . 144 342 Effects 3 | . 3 . . . . . . Interference 3 | . 3 . . . . . . Siege Activations . | . . . . . . . . Martial Activations . | . . . . . . . . Shielding Activations . | . . . . . . . . Robots Disrupted . | . . . . . . . . Combat Hostiles . | . . . . . . . . Robots Corrupted . | . . . . . . . . Combat Hostiles . | . . . . . . . . Parts Fried 1 | . . . 1 . . . . Impact Corruptions . | . . . . . . . . Robots Melted 1 | . 1 . . . . . . Combat Hostiles 1 | . 1 . . . . . . Parts Melted 3 | . 3 . . . . . . Heat Transferred 2579 | . 1850 148 100 . . . 481 Parts Sabotaged . | . . . . . . . . Parts Stolen . | . . . . . . . . Parts Stripped . | . . . . . . . . Power Chain Reactions 1 | . . . 1 . . . . Alert | -11 -10 -10 -9 -9 -9 -8 -8 ------- Run | Yrd Mat Min Mat Min Exi Min Mat Maximum Alert Level 2 | . . . 2 . . . 1 Low Security (%) 64 | 100 100 100 26 100 . 100 98 Level 1 28 | . . . 58 . . . 1 Level 2 7 | . . . 14 . . . . Level 3 . | . . . . . . . . Level 4 . | . . . . . . . . Level 5 . | . . . . . . . . High Security . | . . . . . . . . Max Security . | . . . . . . . . Peak Influence 452 | 10 70 40 452 68 . 92 205 Initial 39 | . . . 9 39 . . . Average 139 | 1 18 3 260 21 . 15 87 Influence Increases 2562 | 20 318 50 1481 88 . 172 433 Destroy 0b10 Robot/C 1640 | . 200 40 940 60 . 140 260 Destroy 0b10 Robot/NC 135 | 20 10 . 85 . . . 20 Destroy Leader 364 | . 42 10 210 10 . 30 62 Successful Hack 37 | . 20 . 17 . . . . Disable Machine 45 | . . . 27 18 . . . Destroy Structure 146 | . 1 . 82 . . 2 61 Partial Spotted 30 | . . . 15 . . . 15 Lose Combat Pursuer 165 | . 45 . 105 . . . 15 Influence Decreases 2400 | 20 318 20 1390 209 . 172 271 Entered New Map 103 | . . . 21 82 . . . Time Decay 2237 | 20 318 20 1349 127 . 162 241 Lost Part 60 | . . . 20 . . 10 30 Squads Dispatched 18 | . 3 . 8 . . . 7 Investigation 6 | . 3 . 2 . . . 1 Extermination . | . . . . . . . . Reinforcement 9 | . . . 6 . . . 3 Assault . | . . . . . . . . Garrison 3 | . . . . . . . 3 Intercept . | . . . . . . . . Searches Triggered . | . . . . . . . . Construction Impeded 1 | . . . 1 . . . . Haulers Reinforced . | . . . . . . . . Active Scanning Responses . | . . . . . . . . Cargo Convoy Interrupts . | . . . . . . . . Stealth | -11 -10 -10 -9 -9 -9 -8 -8 --------- Run | Yrd Mat Min Mat Min Exi Min Mat Distress Signals 9 | . 3 . 3 . . . 3 Communications Jammed . | . . . . . . . . Distress Signals . | . . . . . . . . Times Spotted 118 | . 16 2 65 3 . 7 25 Peak Tracking Total 7 | . 3 2 7 3 . 3 5 Tactical Retreats 9 | . 3 . 5 . . . 1 Traps | -11 -10 -10 -9 -9 -9 -8 -8 ------- Run | Yrd Mat Min Mat Min Exi Min Mat Traps Triggered 7 | . 2 . 4 . . . 1 Indirectly . | . . . . . . . . Trap Hack Attempts . | . . . . . . . . Triggered . | . . . . . . . . Disarmed . | . . . . . . . . Reprogrammed . | . . . . . . . . Reused . | . . . . . . . . Traps Extracted . | . . . . . . . . Installed . | . . . . . . . . Triggered . | . . . . . . . . Machines | -11 -10 -10 -9 -9 -9 -8 -8 ---------- Run | Yrd Mat Min Mat Min Exi Min Mat Machines Disabled 5 | . . . 3 2 . . . Max in Single Turn 2 | . . . 2 1 . . . Machines Repaired . | . . . . . . . . Machines Dismantled . | . . . . . . . . Machines Sabotaged . | . . . . . . . . Overloaded Fab Kills . | . . . . . . . . Hacking | -11 -10 -10 -9 -9 -9 -8 -8 --------- Run | Yrd Mat Min Mat Min Exi Min Mat Machines Accessed 11 | . 3 . 5 . 2 . 1 Terminals 7 | . 3 . 3 . . . 1 Fabricators . | . . . . . . . . Repair Stations 1 | . . . 1 . . . . Recycling Units . | . . . . . . . . Scanalyzers 1 | . . . 1 . . . . Garrison Access . | . . . . . . . . Total Hacks 39 | . 9 . 16 . 10 . 4 Successful 25 | . 5 . 9 . 10 . 1 Failed 14 | . 4 . 7 . . . 3 Catastrophic . | . . . . . . . . Database Lockouts . | . . . . . . . . Manual 24 | . 9 . 10 . 1 . 4 Terminals 23 | . 9 . 10 . . . 4 Fabricators . | . . . . . . . . Repair Stations 2 | . . . 2 . . . . Recycling Units . | . . . . . . . . Scanalyzers 4 | . . . 4 . . . . Garrison Access . | . . . . . . . . Terminal Hacks 16 | . 4 . 2 . 10 . . Record 9 | . . . . . 9 . . Branch Access Points 1 | . 1 . . . . . . Scanalyzer Index 3 | . 2 . 1 . . . . Hauler Manifests 2 | . 1 . 1 . . . . Proto ID Catalog 1 | . . . . . 1 . . Fabricator Hacks . | . . . . . . . . Repair Station Hacks 2 | . . . 2 . . . . Scan Component 1 | . . . 1 . . . . Repair 1 | . . . 1 . . . . Recycling Unit Hacks . | . . . . . . . . Scanalyzer 4 | . . . 4 . . . . Insert Component 2 | . . . 2 . . . . Analyze 2 | . . . 2 . . . . Garrison Access Hacks . | . . . . . . . . Unauthorized Hacks 3 | . 1 . 1 . . . 1 Terminals 3 | . 1 . 1 . . . 1 Operators 3 | . 1 . 1 . . . 1 Fabricators . | . . . . . . . . Repair Stations . | . . . . . . . . Recycling Units . | . . . . . . . . Scanalyzers . | . . . . . . . . Garrison Access . | . . . . . . . . Data Cores Recovered . | . . . . . . . . Used . | . . . . . . . . Hacking Detections 8 | . 3 . 4 . . . 1 Full Trace Events 2 | . 1 . . . . . 1 Feedback Events . | . . . . . . . . Feedback Blocked . | . . . . . . . . Robot Schematics Acquired . | . . . . . . . . Robots Built . | . . . . . . . . Authchips . | . . . . . . . . Time . | . . . . . . . . Total Robot Build Rating . | . . . . . . . . Part Schematics Acquired 2 | . . . 2 . . . . Parts Built . | . . . . . . . . Authchips . | . . . . . . . . Time . | . . . . . . . . Total Part Build Rating . | . . . . . . . . Parts Repaired 1 | . . . 1 . . . . Time 32 | . . . 32 . . . . Parts Recycled . | . . . . . . . . Recycled Matter . | . . . . . . . . Retrieved Matter . | . . . . . . . . Retrieved Components . | . . . . . . . . Parts Scanalyzed 2 | . . . 2 . . . . Part Schematics Acquired 2 | . . . 2 . . . . Parts Damaged . | . . . . . . . . Bothacking | -11 -10 -10 -9 -9 -9 -8 -8 ------------ Run | Yrd Mat Min Mat Min Exi Min Mat Used RIF Installer . | . . . . . . . . Robots Hacked 3 | . . . . . 3 . . Non-combat 2 | . . . . . 2 . . Combat 1 | . . . . . 1 . . Robot Hacks Applied 3 | . . . . . 3 . . parse_system 3 | . . . . . 3 . . Relay Couplers Released . | . . . . . . . . Fabnet Peak Effective % . | . . . . . . . . Robots Rewired . | . . . . . . . . Allies Hacked . | . . . . . . . . Hacks Repelled . | . . . . . . . . Allies | -11 -10 -10 -9 -9 -9 -8 -8 -------- Run | Yrd Mat Min Mat Min Exi Min Mat Total Allies . | . . . . . . . . Largest Group . | . . . . . . . . Highest-Rated Group . | . . . . . . . . Highest-Rated Ally . | . . . . . . . . Total Orders . | . . . . . . . . Ally Attacks . | . . . . . . . . Total Damage . | . . . . . . . . Kills . | . . . . . . . . Allies Corrupted . | . . . . . . . . Allies Melted . | . . . . . . . . Intel | -11 -10 -10 -9 -9 -9 -8 -8 ------- Run | Yrd Mat Min Mat Min Exi Min Mat Active Infowar (turns) 1734 | 4 1017 272 441 . . . . Terrain 1734 | 4 1017 272 441 . . . . Robot Analysis Total . | . . . . . . . . Derelict Logs Recovered 2 | . . 1 . 1 . . . Drone Launches . | . . . . . . . . Drone Recoveries . | . . . . . . . . Exploration | -11 -10 -10 -9 -9 -9 -8 -8 ------------- Run | Yrd Mat Min Mat Min Exi Min Mat Turns Passed 6608 | 142 1017 272 2971 377 419 866 544 Spaces Moved 3585 | 69 531 165 1612 220 250 480 258 Core 5 | 5 . . . . . . . Treads 3580 | 64 531 165 1612 220 250 480 258 Legs . | . . . . . . . . Wheels . | . . . . . . . . Hover . | . . . . . . . . Flight . | . . . . . . . . Fastest Speed 50 | 50 160 160 160 160 160 160 160 Average Speed 159 | 152 160 160 160 160 160 160 160 Slowest Speed 160 | 160 160 160 160 160 160 160 160 Overloaded Moves . | . . . . . . . . Propulsion Burnouts . | . . . . . . . . Robots Hopped . | . . . . . . . . Potential Cave-ins . | . . . . . . . . Cave-ins Triggered . | . . . . . . . . Exploration Rate (%) 54 | 6 62 39 97 57 61 84 29 Regions Visited 7 Branch Regions 4 Pre-discovered Areas 2 | . . 1 . . 1 . . Known Exits Taken 2 | . 1 . 1 . . . . Unknown Exits Taken 5 | 1 . 1 . 1 1 1 . Scrap Searched 2 | . . . . . . 2 . Spaces Dug . | . . . . . . . . Terrain Destroyed 147 | . . . 85 . . 2 60 Melee . | . . . . . . . . Projectile 27 | . . . 22 . . 2 3 AOE 120 | . . . 63 . . . 57 Terrain Rammed . | . . . . . . . . Walls Destroyed . | . . . . . . . . Machines Disabled . | . . . . . . . . Actions | -11 -10 -10 -9 -9 -9 -8 -8 --------- Run | Yrd Mat Min Mat Min Exi Min Mat Total 4107 | 94 630 167 1835 240 273 544 324 Wait 164 | . 35 . 74 15 . 36 4 Move 3578 | 68 530 164 1611 219 249 479 258 Hop . | . . . . . . . . Pick Up 57 | 10 15 . 18 1 8 1 4 Fast Attach . | . . . . . . . . Attach 39 | 8 5 . 16 1 3 1 5 Detach 5 | . . . 3 . 2 . . Swap 11 | . 1 . 5 . . 1 4 Drop 37 | 1 7 . 16 1 8 1 3 Fire 212 | 7 37 3 92 3 . 24 46 Melee 3 | . . . . . 3 . . Ram . | . . . . . . . . Kick . | . . . . . . . . Crush 1 | . . . . . . 1 . Escape Stasis . | . . . . . . . . Rewire . | . . . . . . . . Trap . | . . . . . . . . Miscellaneous . | . . . . . . . . Route ------- -11/Scrapyard -10/Materials (discovered 3 exits: *Mat x2 / *Min) -10/Mines -9/Materials (discovered 5 exits: *Mat x3 / *Min x2) -9/Mines (discovered 3 exits: *Mat x2 / *Exi) -9/Exiles -8/Mines -8/Materials (discovered 2 exits: [*Fac] / Sto) History --------- Turn | Location | Event 3 | -11/Scrapyard | Discovered new exit (range 15) 143 | -11/Scrapyard | Entered Materials 324 | -10/Materials | Build established: Mutant 643 | -10/Materials | Derelicts attacked the area 658 | -10/Materials | Discovered new exit (range 3) 946 | -10/Materials | Discovered new exit (range 7) 1066 | -10/Materials | Discovered new exit (range 12) 1136 | -10/Materials | Identified exit to Mines 1160 | -10/Materials | Entered Mines 1333 | -10/Mines | Discovered new exit (range 11) 1343 | -10/Mines | Found a Scrap Suit stashed away for nefarious purposes 1356 | -10/Mines | Learned location of 1 exit from Materials 1404 | -10/Mines | Core integrity fell below 50% 1414 | -10/Mines | Learned location of Storage (-8) 1432 | -10/Mines | Entered Materials 1432 | -9/Materials | Evolved 2 slots: Propulsion x1, Utility x1 1433 | -9/Materials | Identified exit to Mines 1433 | -9/Materials | Discovered exit to Mines (range 15) 1668 | -9/Materials | Discovered new exit (range 4) 2262 | -9/Materials | Discovered new exit (range 16) 2695 | -9/Materials | Discovered new exit (range 15) 3954 | -9/Materials | Repaired Imp. Treads 4403 | -9/Materials | Entered Mines 4405 | -9/Mines | Met a Derelict bent on vengeance 4432 | -9/Mines | Discovered new exit (range 13) 4736 | -9/Mines | Discovered new exit (range 10) 4772 | -9/Mines | Deemed a non-threat by the Exiles lab entrance 4772 | -9/Mines | Discovered new exit (range 5) 4780 | -9/Mines | Entered Exiles 4826 | -9/Exiles | Met 8R-AWN 4859 | -9/Exiles | Met EX-HEX 4912 | -9/Exiles | Met EX-BIN 4956 | -9/Exiles | Aligned with FarCom system 4958 | -9/Exiles | Given EX-Vault access code 5000 | -9/Exiles | Opened EX-Vault 5012 | -9/Exiles | Found Lightpack 2.0 5063 | -9/Exiles | Warned to stay clear of 0b10 Research branches 5108 | -9/Exiles | Met EX-DEC 5118 | -9/Exiles | Learned location of Zion (-7) 5180 | -9/Exiles | Discovered new exit (range 12) 5199 | -9/Exiles | Left Exiles lab with Lightpack 2.0 5199 | -9/Exiles | Entered Mines 5333 | -8/Mines | Build established: Hauler-Mutant 6005 | -8/Mines | Discovered new exit (range 9) 6065 | -8/Mines | Entered Materials 6065 | -8/Materials | Evolved 2 slots: Utility x2 6066 | -8/Materials | Identified exit to Storage 6397 | -8/Materials | Garrison activated, responded to threat 6403 | -8/Materials | Discovered new exit (range 10) 6593 | -8/Materials | Lost 3 parts (2n1w) 6609 | -8/Materials | Self-destructed Last Messages --------------- K-01 Serf destroyed. Acquired 20 matter. Slug penetrates Wall. Penetrated by Slug. W-25 Informer destroyed. H-55 Commando destroyed. Mni. Grenade Launcher destroyed. K-01 Serf collects debris. R-06 Scavenger collects Carbon-fiber Leg. K-01 Serf collects debris. O-16 Technician destroyed. K-01 Serf collects debris. O-16 Technician: "IFF HANDSHAKE FAILED. SECURING TERMINAL." ALERT: Hostiles spotted, dispatching reinforcements to Terminal M003. R-06 Scavenger collects Lgt. Ion Engine. C-30 ARC bursts open, deploying its payload. L-31 Rogue unfolds itself. G-47 Trooper unfolds itself. Map ----- +----------------------------------------------------+ | ?????????????????????????????????????????????????? | | ?????????????????????????????????????????????????? | | ?????????????????????????????????????????????????? | | ?????????????????????????????????????????????????? | | ?????????????????????????????????????????????????? | | ?????????????????????????????????????????????????? | | ?????????????????????????????????????????????????? | | ??????????????????????????o??????????????????????? | | ?????????????????????????????????????????????????? | | ?????????????????????????????????????????????????? | | ?????????????????????????????????????????????????? | | ???????????????????????? ????????????????????????? | | ????????????????????????+####????????????????????? | | ????????????????????????"% ????????????????????? | | ???????????????????????? g ????????????????????? | | ???????????????????????? g ????????????????????? | | ????????????????????????#l #????????????????????? | | ????????????????????????# a #????????????????????? | | ????????????????????????# #????????????????????? | | ????????????????????????# +????????????????????? | | ????????????????????????# #????????????????????? | | ???????????????????????? #????????????????????? | | ????????????????????????# #????????????????????? | | ????????????????????????# #????????????????????? | | ????????????????????????# #?????????##########?? | | ????????????????????????#@ #?????????# ### | | ????????????????????????# #?????????# # | | ????????????????????????# #??######## # | | ????????????????????????# #??# """ # # " | | ????????????????????????# #??# """ # # " | | ????????????????????????# #??# """ # # " | | ????????????????????????# #??# # # | | ????????????????????????# #???? # # | | ????????????????????????# #?????? # # | | ????????????????+######## YY#########+####+####### | | ????????????? k r % ! | | ????????????? % r ] | | ????????????? | | ?????????????#################+#####"####% #### | | ???????????????????????????? ?# [# % # | | ???????????????????????????# ""# ## # # | | ???????????????????????????# T"# ## #### | | ???????????????????????????#!!! ""# = ## #??# | | ???????????????????????????#!! # !*## ###### | | ???????????????????????????#!! # =%=## | | ???????????????????????????####### ! # | | ?????????????????????????????????? ###### | | ?????????????????????????????????# = #????# | | ?????????????????????????????????# #????# | | ???????????????????????????"" #????# | +----------------------------------------------------+ Best States ------------- Heat Dissipation 31 Energy Generation 14 Energy Capacity 275 Matter Stores 300 Matter Capacity 350 Sight Range 16 Terrain Scan Range 16 Terrain Scan Density 10 Armor Coverage 150 Resistance: KI 20 Resistance: TH 20 Resistance: EX 20 Resistance: EM 20 Resistance: I 20 Resistance: S 20 Resistance: P 20 Evasion (%) 40 Recoil Reduction 3 Offensive Hacking 10 Item Schematics ----------------- Imp. Propulsion Shielding | -9/Materials | Scanalyzed Imp. Flight Unit | -9/Materials | Scanalyzed Robot Schematics ------------------ None Fabricated ------------ Nothing Repaired ---------- Imp. Treads | 7% | -9/Materials Alien Tech Used ----------------- None Achievements -------------- None Challenges ------------ None Game ------ Seed PitchforkBurstReactor Manual? 0 Play Time 00:35:46 Cumulative 8.2 hours Start 2025.05.07 @ 07:20:42 End 2025.05.08 @ 01:21:33 Sessions 2 Manual Loads 0 Difficulty Adventurer Special Mode None Game No. 12 Rogue 0 Adventurer 12 Explorer 0 Win Type - Total 0 Types 0/0/0/0/0/0/0/0/0/0 Lore% 17 Gallery% 13 Achievement% 17 Wizard Run 0 Options --------- Layout 2 ASCII 0 Keyboard 0 Movement Mouse Keybinds 0 Fullscreen 2 Font 24/Smallcaps Map View 50x44 Zoom Use 0% Tactical HUD 0 Map Filters NONE Filters NONE Steam 1 RUN: 579baa5c-cc5a-471c-a8a4-bd4f6cd28779